Workbook

Sheet 예산세부내역
A1: 2022 + 국가명 + 도시명 + 품목 + 전시회명 + 수출컨소시엄 순으로 제목 기재 ex) 2022 중국 홍콩 소비재 메가쇼 수출컨소시엄 | L1: * 노란색 부분만 기재하여 주시기 바랍니다.
A3: 주관단체명 | B3: 00조합/협회 등 | F3: * 검색시 도시명이 없는 경우, 동일국가 최근접 도시로 선택 | L3: * 현재 입력된 것은 예시 입니다
A4: 시작일시 | B4: 완료일시 | C4: 전시기간 | F4: 전시국가 | G4: 단가기준도시 | H4: 참여업체수 | I4: 기본부스면적(㎡) | J4: 초청바이어수
A5: 2022-03-01 | B5: 2022-03-04 | C5: =DAYS360(A5,B5)+1 -> 4 | F5: 미국(시카고) | G5: 시카고 | H5: 10 | I5: 9 | J5: 6
A6: 임차단가(㎡) | B6: 임차료통화 | C6: 등록비 | F6: 보험료단가 | G6: VAT(%) | H6: 운송단가(1cbm) | I6: 회선임차 | J6: 주관단체항공료
A7: 296 | B7: USD | C7: 450 | F7: 0.6 | G7: 0.05 | H7: 1200000 | I7: 2632800 | J7: 1296000
A8: 1단계 | B8: 바이어발굴 및 매칭·수출컨설팅 | C8: 해외마케팅·홍보 | F8: 2단계 | G8: 차량임차 | H8: 통역원수
B9: 6000000 | C9: 5000000 | G9: 500000 | H9: 11
A10: 3단계 | B10: 3단계 상담일수 | C10: 바이어항공료 | F10: 상담장임차 | G10: 차량임차 | H10: 신용조사단가 | I10: 통역단가
B11: 1 | C11: 700000 | F11: 2000000 | G11: 500000 | H11: 100000 | I11: 200000
A13: 예산용도 | B13: 세부내역 | G13: 지원금액 | I13: 개산급 지급액 | J13: 사후 지급액 | K13: 업체부담금
A14: 사전준비단계 | B14: - 바이어발굴 및 매칭 ·수출컨설팅 | C14: =MIN(B9,H5*1000000) -> 6000000 | F14: 1 | G14: =C14*F14 -> 6000000 | I14: =G14*0.8 -> 4800000 | J14: =G14-I14 -> 1200000 | K14: =C14-G14 -> 0
B15: - 해외마케팅·홍보 | C15: =MIN(C9,H5*1000000) -> 5000000 | F15: 1 | G15: =C15*F15 -> 5000000 | I15: =G15*0.8 -> 4000000 | J15: =G15-I15 -> 1000000 | K15: =C15-G15 -> 0
B16: 소 계 | G16: =SUM(G14:H15) -> 11000000 | I16: =SUM(I14:I15) -> 8800000 | J16: =SUM(J14:J15) -> 2200000 | K16: =SUM(K14:K15) -> 0
A17: 현지활동단계 | B17: ㅇ부스임차료(70%) | G17: =PRODUCT(F19,F20,F22)*0.7 -> 22191120 | I17: =G17*0.8 -> 17752896 | J17: =G17-I17 -> 4438224 | K17: =PRODUCT(F19,F20,F22)*0.3 -> 9510480 | M17: 비고
B18: - 지원 업체수 | D18: 업체 | F18: =H5 -> 10 | M18: 용역비 | N18: =G14 -> 6000000
B19: - 임차료 단가 | D19: /㎡ | F19: =A7 -> 296 | M19: 총 사업비 | N19: =G16+G33+G39+G40+G45+G53 -> 120231011
B20: - 지원규모 | D20: ㎡ | F20: =F18*F21 -> 90 | M20: (사업비 15%) | N20: =N19*0.15 -> 18034651.65
B21: - 1부스 규모 | F21: =I5 -> 9 | M21: 구성운영비 초과여부 | N21: =IF(MIN(SUM(G59:H63),N20)>15000000,"초과","정상") -> 정상
B22: - 환 율 | C22: ( | D22: =B7 -> USD | E22: ) | F22: =VLOOKUP($D22,'KOTRA 기준단가'!$I$1:$J$7,2,0) -> 1190 | M22: 1차보조금 | N22: =I65 -> 100603145.8
B23: ㅇ등록비 등 | G23: =SUM(G24,G28,G32) -> 5077611 | I23: =G23*0.8 -> 4062088.8 | J23: =G23-I23 -> 1015522.2 | K23: =SUM(K24,K28,K32) -> 1606500 | M23: 업체부담금 | N23: =K65/H5 -> 3381510
B24: ㅇ등록비(70%) | G24: =PRODUCT(F25:F27)*0.7 -> 3748500 | I24: =G24*0.8 -> 2998800 | J24: =G24-I24 -> 749700 | K24: =PRODUCT(F25:F27)*0.3 -> 1606500
B25: - 등록비 단가 | C25: /업체 | F25: =C7 -> 450
B26: - 지원 업체수 | F26: =F18 -> 10
B27: - 환율 | C27: 원/ | F27: =F22 -> 1190
B28: ㅇVAT | G28: =F29*(F30+F31) -> 1296981 | I28: =G28*0.8 -> 1037584.8 | J28: =G28-I28 -> 259396.2
B29: - 세율 | F29: =G7 -> 0.05
C30: 등록비(0.7) | F30: =G24 -> 3748500
C31: 임차료(0.7) | F31: =G17 -> 22191120
B32: ㅇ보험료 | F32: =F7 -> 0.6 | G32: =F32*F22*F20*0.5 -> 32130 | I32: =G32*0.8 -> 25704 | J32: =G32-I32 -> 6426
B33: 소 계 | G33: =G17+G23 -> 27268731 | I33: =I17+I23 -> 21814984.8 | J33: =J17+J23 -> 5453746.2 | K33: =K17+K23 -> 11116980
B34: ㅇ부스장치비 | G34: =PRODUCT(F35:F38) -> 38684520 | I34: =G34*0.8 -> 30947616 | J34: =G34-I34 -> 7736904 | K34: =PRODUCT(F35,F36,F37,(1-F38)) -> 16579080
B35: - 참가면적 | F35: =F20 -> 90
B36: - 장치비단가 | D36: /㎡ | F36: =VLOOKUP($G$5,'KOTRA 기준단가'!$B$2:$E$138,3,0) -> 516
B37: - 환 율 | C37: ( | D37: =VLOOKUP($G$5,'KOTRA 기준단가'!$B$1:$E$138,2,0) -> USD | E37: ) | F37: =VLOOKUP($D37,'KOTRA 기준단가'!$I$1:$J$7,2,0) -> 1190
B38: - 지원비율 | F38: 0.7
B39: 소 계 | G39: =G34 -> 38684520 | I39: =I34 -> 30947616 | J39: =J34 -> 7736904 | K39: =K34 -> 16579080
B40: ㅇ전시물품 운송료 | G40: =C42*F18 -> 12000000 | I40: =G40*0.8 -> 9600000 | J40: =G40-I40 -> 2400000 | K40: 0
B42: - 1CBM 단가 | C42: =H7 -> 1200000 | E42: 원
B43: ㅇ 통역 | C43: =D37 -> USD | D43: =VLOOKUP($G$5,'KOTRA 기준단가'!$B$1:$E$138,4,0) -> 380 | E43: =C5 -> 4 | F43: =H9 -> 11 | G43: =E43*D43*F37*F43*0.7 -> 13927760 | I43: =G43*0.8 -> 11142208 | J43: =G43-I43 -> 2785552 | K43: =PRODUCT(D43*E43*F43*F37)*0.3 -> 5969040
B44: ㅇ 차량 임차 | C44: =G9 -> 500000 | F44: 0.7 | G44: =C44*F44 -> 350000 | I44: =G44*0.8 -> 280000 | J44: =G44-I44 -> 70000 | K44: =C44-G44 -> 150000
B45: 소 계 | G45: =SUM(G40:H44) -> 26277760 | I45: =SUM(I43:I44) -> 11422208 | J45: =SUM(J43:J44) -> 2855552 | K45: =SUM(K43:K44) -> 6119040
A46: 사후관리단계
B52: - 샘플발송비 | C52: 1000000 | F52: 5 | G52: =C52*F52 -> 5000000 | I52: =G52*0.8 -> 4000000 | J52: =G52-I52 -> 1000000 | K52: =C52*F52-G52 -> 0
B53: 소 계 | G53: =SUM(G46:H52) -> 5000000 | I53: =SUM(I46:I52) -> 4000000 | J53: =SUM(J46:J52) -> 1000000 | K53: =SUM(K46:K51) -> 0
A54: 운영비 | B54: ㅇ 공동홍보관 운영
C55: 단가 | F55: 규모
B56: - 부스임차(㎡) | F56: =I5 -> 9 | G56: =F56*F19*F22 -> 3170160 | I56: =G56*0.9 -> 2853144 | J56: =G56-I56 -> 317016
B57: - 장치비 | G57: =F36*F56*F37 -> 5526360 | I57: =G57*0.9 -> 4973724 | J57: 552636
B58: - 회선임차 | G58: =I7 -> 2632800 | I58: =G58*0.9 -> 2369520 | J58: =G58-I58 -> 263280
B59: - 기타운영 | C59: 50000 | F59: =H5 -> 10 | G59: =MIN(C59*F59,1000000) -> 500000 | I59: =G59*0.9 -> 450000 | J59: 50000
B60: - 사전간담회(국내) | C60: 50000 | F60: =H5 -> 10 | G60: =MIN(C60*F60,1000000) -> 500000 | I60: =G60*0.9 -> 450000 | J60: =G60-I60 -> 50000
B61: - 현지간담회 | C61: 50000 | F61: =H5 -> 10 | G61: =MIN(C61*F61,1000000) -> 500000 | I61: 450000 | J61: 50000
B62: - 항공료(주관단체1인) | D62: 업체 | F62: =H5 -> 10 | G62: =J7*IF(F62>=16,"2","1") -> 1296000 | I62: =G62*0.9 -> 1166400 | J62: 129600
B63: - 국외여비(주관단체1인) | C63: =VLOOKUP($G$5,국외여비기준!$E$1:$L$130,7,0)*E63 -> 1613640 | E63: =E43+2 -> 6 | F63: =C63-VLOOKUP($G$5,국외여비기준!$E$1:$L$130,8,FALSE) -> 1450610 | G63: =F63*IF(F62>=16,"2","1") -> 1450610 | I63: =G63*0.9 -> 1305549 | J63: 145061
B64: 소 계 | G64: =SUM(G56:H63) -> 15575930 | I64: =SUM(I56:I63) -> 14018337 | J64: =SUM(J56:J63) -> 1557593 | K64: 0
A65: 총 계 | G65: =G16+G33+G39+G45+G53+G64 -> 123806941 | I65: =I16+I33+I39+I40+I45+I53+I64 -> 100603145.8 | J65: =J16+J33+J39+J40+J45+J53+J64 -> 23203795.2 | K65: =K16+K33+K39+K40+K45+K53+K64 -> 33815100
A67: * 해외전시포탈 업로드 : 예산서(엑셀), 전시회브로셔(1㎡당 단가, 회선임차 단가 포함), 해상운송(편도 1cbm) 견적서
A68: * 부스임차료, 장치비, 운송료, 운영비간 항목조정은 "수출컨소시엄 운영지침" 참조 / 지원환율은 변동가능
A69: * 사후정산 신청시 정산서류는 사본 제출(원본대조필 날인)
A70: * 문의처 : 중소기업중앙회 무역촉진부 신자은 차장, 임선우 차장, 소재민 차장, 김원일 과장, 김예민 과장 (02-2124-3291~5)

Sheet KOTRA 기준단가
A1: 순번 | B1: 지역 | C1: 통화 | D1: 장치비(㎡) | E1: 통역원(일) | F1: 비고(무역관 없는 지역은 가장 가까운 무역관 단가 적용) | I1: 통화 | J1: (2021 기준)
A2: 1 | B2: 런던 | C2: GBP | D2: 290 | E2: 165 | I2: CNY | J2: 180
A3: 2 | B3: 마드리드 | C3: EUR | D3: 400 | E3: 300 | I3: EUR | J3: 1370
A4: 3 | B4: 뮌헨 | C4: EUR | D4: 380 | E4: 230 | I4: JPY | J4: 1040
A5: 4 | B5: 밀라노 | C5: EUR | D5: 396 | E5: 300 | I5: USD | J5: 1190
A6: 5 | B6: 바르샤바 | C6: EUR | D6: 275 | E6: 200 | I6: 영국£ | J6: 1500
A7: 6 | B7: 베오그라드 | C7: EUR | D7: 250 | E7: 220 | I7: 싱가폴$ | J7: 870
A8: 7 | B8: 부다페스트 | C8: EUR | D8: 260 | E8: 280
A9: 8 | B9: 부쿠레슈티 | C9: EUR | D9: 250 | E9: 200
A10: 9 | B10: 브라티슬라바 | C10: EUR | D10: 250 | E10: 200
A11: 10 | B11: 브뤼셀 | C11: EUR | D11: 336 | E11: 200
A12: 11 | B12: 빈 | C12: EUR | D12: 250 | E12: 200
A13: 12 | B13: 소피아 | C13: EUR | D13: 250 | E13: 200
A14: 13 | B14: 스톡홀름 | C14: USD | D14: 340 | E14: 395
A15: 14 | B15: 아테네 | C15: EUR | D15: 260 | E15: 200
A16: 15 | B16: 암스테르담 | C16: EUR | D16: 300 | E16: 220
A17: 16 | B17: 자그레브 | C17: EUR | D17: 275 | E17: 200
A18: 17 | B18: 취리히 | C18: CHF | D18: 444 | E18: 400
A19: 18 | B19: 쾰른 | C19: EUR | D19: 380 | E19: 200 | F19: 프랑크푸르트
A20: 19 | B20: 프리드리히샤펀 | C20: EUR | D20: 380 | E20: 200 | F20: 프랑크푸르트
A21: 20 | B21: 뒤셀도르프 | C21: EUR | D21: 380 | E21: 200 | F21: 프랑크푸르트
A22: 21 | B22: 뉴렌버그 | C22: EUR | D22: 380 | E22: 200 | F22: 프랑크푸르트
A23: 22 | B23: 코펜하겐 | C23: USD | D23: 340 | E23: 390
A24: 23 | B24: 파리 | C24: EUR | D24: 330 | E24: 220
A25: 24 | B25: 프라하 | C25: EUR | D25: 260 | E25: 200
A26: 25 | B26: 프랑크푸르트 | C26: EUR | D26: 380 | E26: 200
A27: 26 | B27: 함부르크 | C27: EUR | D27: 380 | E27: 210
A28: 27 | B28: 헬싱키 | C28: EUR | D28: 330 | E28: 225
A29: 28 | B29: 베로나 | C29: EUR | D29: 396 | E29: 300 | F29: 밀라노
A30: 29 | B30: 뉴욕 | C30: USD | D30: 516 | E30: 350
A31: 30 | B31: 달라스 | C31: USD | D31: 516 | E31: 300
A32: 31 | B32: 디트로이트 | C32: USD | D32: 516 | E32: 300
A33: 32 | B33: 로스앤젤레스 | C33: USD | D33: 516 | E33: 500
A34: 33 | B34: 라스베가스 | C34: USD | D34: 516 | E34: 500 | F34: 로스앤젤레스
A35: 34 | B35: 애너하임 | C35: USD | D35: 516 | E35: 500 | F35: 로스앤젤레스
A36: 35 | B36: 미시건 | C36: USD | D36: 516 | E36: 300 | F36: 디트로이트
A37: 36 | B37: 밴쿠버 | C37: CAD | D37: 480 | E37: 400
A38: 37 | B38: 시카고 | C38: USD | D38: 516 | E38: 380
A39: 38 | B39: 실리콘밸리 | C39: USD | D39: 516 | E39: 300
A40: 39 | B40: 워싱턴 | C40: USD | D40: 516 | E40: 320
A41: 40 | B41: 토론토 | C41: CAD | D41: 480 | E41: 400
A42: 41 | B42: 과테말라 | C42: USD | D42: 250 | E42: 240
A43: 42 | B43: 리마 | C43: USD | D43: 198 | E43: 210
A44: 43 | B44: 멕시코시티 | C44: USD | D44: 300 | E44: 242
A45: 44 | B45: 보고타 | C45: USD | D45: 198 | E45: 200
A46: 45 | B46: 부에노스아이레스 | C46: USD | D46: 250 | E46: 227
A47: 46 | B47: 산토도밍고 | C47: USD | D47: 190 | E47: 200
A48: 47 | B48: 산티아고 | C48: USD | D48: 250 | E48: 207
A49: 48 | B49: 상파울루 | C49: USD | D49: 330 | E49: 245
A50: 49 | B50: 아바나 | C50: CAD | D50: 330 | E50: 200
A51: 50 | B51: 아순시온 | C51: USD | D51: 165 | E51: 160
A52: 51 | B52: 키토 | C52: USD | D52: 165 | E52: 250
A53: 52 | B53: 파나마 | C53: USD | D53: 275 | E53: 250
A54: 53 | B54: 뉴델리 | C54: USD | D54: 253 | E54: 253
A55: 54 | B55: 다낭 | C55: USD | D55: 216 | E55: 216
A56: 55 | B56: 다카 | C56: USD | D56: 130 | E56: 130
A57: 56 | B57: 마닐라 | C57: USD | D57: 170 | E57: 170
A58: 57 | B58: 멜버른 | C58: AUD | D58: 576 | E58: 576
A59: 58 | B59: 뭄바이 | C59: USD | D59: 253 | E59: 253
A60: 59 | B60: 방콕 | C60: USD | D60: 200 | E60: 200
A61: 60 | B61: 벵갈루루 | C61: USD | D61: 253 | E61: 253
A62: 61 | B62: 비엔티안 | C62: USD | D62: 120 | E62: 120
A63: 62 | B63: 수라바야 | C63: USD | D63: 170 | E63: 170
A64: 63 | B64: 시드니 | C64: AUD | D64: 576 | E64: 576
A65: 64 | B65: 싱가포르 | C65: SGD | D65: 420 | E65: 420
A66: 65 | B66: 암다바드 | C66: USD | D66: 253 | E66: 253
A67: 66 | B67: 양곤 | C67: USD | D67: 150 | E67: 150
A68: 67 | B68: 오클랜드 | C68: USD | D68: 413 | E68: 413
A69: 68 | B69: 자카르타 | C69: USD | D69: 170 | E69: 170
A70: 69 | B70: 첸나이 | C70: USD | D70: 253 | E70: 253
A71: 70 | B71: 카라치 | C71: USD | D71: 144 | E71: 144
A72: 71 | B72: 콜롬보 | C72: USD | D72: 170 | E72: 170
A73: 72 | B73: 콜카타 | C73: USD | D73: 253 | E73: 253
A74: 73 | B74: 쿠알라룸푸르 | C74: USD | D74: 220 | E74: 220
A75: 74 | B75: 프놈펜 | C75: USD | D75: 120 | E75: 120
A76: 75 | B76: 하노이 | C76: USD | D76: 216 | E76: 216
A77: 76 | B77: 호치민 | C77: USD | D77: 216 | E77: 216
A78: 77 | B78: 나고야 | C78: JPY | D78: 39600 | E78: 39600
A79: 78 | B79: 도쿄 | C79: JPY | D79: 39600 | E79: 39600
A80: 79 | B80: 오사카 | C80: JPY | D80: 39600 | E80: 39600
A81: 80 | B81: 후쿠오카 | C81: JPY | D81: 39600 | E81: 39600
A82: 81 | B82: 광저우 | C82: CNY | D82: 1380 | E82: 1380
A83: 82 | B83: 난징 | C83: CNY | D83: 1380 | E83: 1380
A84: 83 | B84: 다롄 | C84: CNY | D84: 1380 | E84: 1380
A85: 84 | B85: 베이징 | C85: CNY | D85: 1380 | E85: 1380
A86: 85 | B86: 상하이 | C86: CNY | D86: 1380 | E86: 1380
A87: 86 | B87: 샤먼 | C87: CNY | D87: 1380 | E87: 1380
A88: 87 | B88: 선양 | C88: CNY | D88: 1380 | E88: 1380
A89: 88 | B89: 선전 | C89: CNY | D89: 1380 | E89: 1380
A90: 89 | B90: 시안 | C90: CNY | D90: 1380 | E90: 1380
A91: 90 | B91: 우한 | C91: CNY | D91: 1380 | E91: 1380
A92: 91 | B92: 정저우 | C92: CNY | D92: 1380 | E92: 1380
A93: 92 | B93: 창사 | C93: CNY | D93: 1380 | E93: 1380
A94: 93 | B94: 청두 | C94: CNY | D94: 1380 | E94: 1380
A95: 94 | B95: 충칭 | C95: CNY | D95: 1380 | E95: 1380
A96: 95 | B96: 칭다오 | C96: CNY | D96: 1380 | E96: 1380
A97: 96 | B97: 타이베이 | C97: USD | D97: 250 | E97: 250
A98: 97 | B98: 톈진 | C98: CNY | D98: 1380 | E98: 1380
A99: 98 | B99: 항저우 | C99: CNY | D99: 1380 | E99: 1380
A100: 99 | B100: 홍콩 | C100: USD | D100: 300 | E100: 300
A101: 100 | B101: 하얼빈 | C101: CNY | D101: 1380 | E101: 1380 | F101: 다롄
A102: 101 | B102: 동관 | C102: CNY | D102: 1380 | E102: 1380 | F102: 선전
A103: 102 | B103: 곤명 | C103: CNY | D103: 1380 | E103: 1380 | F103: 충칭
A104: 103 | B104: 다마스커스 | C104: USD | D104: 150 | E104: 150
A105: 104 | B105: 도하 | C105: USD | D105: 400 | E105: 400
A106: 105 | B106: 두바이 | C106: USD | D106: 430 | E106: 430
A107: 106 | B107: 아부다비 | C107: USD | D107: 430 | E107: 430 | F107: 두바이
A108: 107 | B108: 리야드 | C108: USD | D108: 450 | E108: 450
A109: 108 | B109: 무스카트 | C109: USD | D109: 350 | E109: 350
A110: 109 | B110: 바그다드 | C110: USD | D110: 250 | E110: 250
A111: 110 | B111: 알제 | C111: USD | D111: 300 | E111: 300
A112: 111 | B112: 암만 | C112: USD | D112: 230 | E112: 230
A113: 112 | B113: 이스탄불 | C113: USD | D113: 300 | E113: 300
A114: 113 | B114: 카사블랑카 | C114: USD | D114: 150 | E114: 150
A115: 114 | B115: 카이로 | C115: USD | D115: 200 | E115: 200
A116: 115 | B116: 쿠웨이트 | C116: USD | D116: 200 | E116: 200
A117: 116 | B117: 테헤란 | C117: USD | D117: 300 | E117: 300
A118: 117 | B118: 텔아비브 | C118: USD | D118: 330 | E118: 330
A119: 118 | B119: 트리폴리 | C119: USD | D119: 165 | E119: 165
A120: 119 | B120: 나이로비 | C120: USD | D120: 250 | E120: 250
A121: 120 | B121: 다레살람 | C121: USD | D121: 204 | E121: 204
A122: 121 | B122: 라고스 | C122: USD | D122: 150 | E122: 150
A123: 122 | B123: 마푸투 | C123: USD | D123: 180 | E123: 180
A124: 123 | B124: 아디스아바바 | C124: USD | D124: 150 | E124: 150
A125: 124 | B125: 아크라 | C125: USD | D125: 150 | E125: 150
A126: 125 | B126: 요하네스버그 | C126: USD | D126: 396 | E126: 396
A127: 126 | B127: 카르툼 | C127: USD | D127: 180 | E127: 180
A128: 127 | B128: 아비장 | C128: USD | D128: 150 | E128: 150
A129: 128 | B129: 노보시비르스크 | C129: USD | D129: 240 | E129: 240
A130: 129 | B130: 모스크바 | C130: USD | D130: 413 | E130: 413
A131: 130 | B131: 민스크 | C131: USD | D131: 300 | E131: 300
A132: 131 | B132: 바쿠 | C132: USD | D132: 170 | E132: 170
A133: 132 | B133: 블라디보스톡 | C133: USD | D133: 180 | E133: 180
A134: 133 | B134: 상트페테르부르크 | C134: USD | D134: 413 | E134: 413
A135: 134 | B135: 알마티 | C135: USD | D135: 375 | E135: 375
A136: 135 | B136: 울란바토르 | C136: USD | D136: 180 | E136: 180
A137: 136 | B137: 키예프 | C137: USD | D137: 200 | E137: 200
A138: 137 | B138: 타슈켄트 | C138: USD | D138: 170 | E138: 170

Sheet 국외여비기준
A1: 연번 | B1: 구분 | C1: 국가 | D1: 구분 | E1: 지역 | F1: 통화 | G1: 일비 | H1: 숙박비 | I1: 식비 | J1: 환율 | K1: 원화 | L1: 1일숙박 제외 | P1: 일비 | Q1: 숙박비 | R1: 식비
A2: 1 | B2: 아메리카 | C2: 미국 | D2: 가 | E2: 뉴욕 | F2: USD | G2: =VLOOKUP($D2,$O$2:$R$5,2,0) -> 30 | H2: =VLOOKUP($D2,$O$2:$R$5,3,0) -> 176 | I2: =VLOOKUP($D2,$O$2:$R$5,4,0) -> 81 | J2: =VLOOKUP(F2,'KOTRA 기준단가'!$I$1:$J$7,2,0) -> 1190 | K2: =(G2+H2+I2)*J2 -> 341530 | L2: =J2*H2 -> 209440 | O2: 가 | P2: 30 | Q2: 176 | R2: 81
A3: 2 | B3: 아시아 | C3: 일본 | D3: 가 | E3: 도쿄 | F3: USD | G3: 30 | H3: 176 | I3: 81 | J3: =VLOOKUP(F3,'KOTRA 기준단가'!$I$1:$J$7,2,0) -> 1190 | K3: 341530 | L3: 209440 | O3: 나 | P3: 30 | Q3: 137 | R3: 59
A4: 3 | B4: 유럽주 | C4: 영국 | D4: 가 | E4: 런던 | F4: USD | G4: 30 | H4: 176 | I4: 81 | J4: =VLOOKUP(F4,'KOTRA 기준단가'!$I$1:$J$7,2,0) -> 1190 | K4: 341530 | L4: 209440 | O4: 다 | P4: 30 | Q4: 106 | R4: 44
A5: 4 | B5: 아메리카 | C5: 미국 | D5: 가 | E5: 로스앤젤레스 | F5: USD | G5: 30 | H5: 176 | I5: 81 | J5: =VLOOKUP(F5,'KOTRA 기준단가'!$I$1:$J$7,2,0) -> 1190 | K5: 341530 | L5: 209440 | O5: 라 | P5: 30 | Q5: 81 | R5: 37
A6: 5 | B6: 유럽주 | C6: 러시아 | D6: 가 | E6: 모스크바 | F6: USD | G6: 30 | H6: 176 | I6: 81 | J6: =VLOOKUP(F6,'KOTRA 기준단가'!$I$1:$J$7,2,0) -> 1190 | K6: 341530 | L6: 209440
A7: 6 | B7: 아메리카 | C7: 미국 | D7: 가 | E7: 샌프란시스코 | F7: USD | G7: 30 | H7: 176 | I7: 81 | J7: =VLOOKUP(F7,'KOTRA 기준단가'!$I$1:$J$7,2,0) -> 1190 | K7: 341530 | L7: 209440
A8: 7 | B8: 아메리카 | C8: 미국 | D8: 가 | E8: 워싱턴 | F8: USD | G8: 30 | H8: 176 | I8: 81 | J8: =VLOOKUP(F8,'KOTRA 기준단가'!$I$1:$J$7,2,0) -> 1190 | K8: 341530 | L8: 209440
A9: 8 | B9: 유럽주 | C9: 프랑스 | D9: 가 | E9: 파리 | F9: USD | G9: 30 | H9: 176 | I9: 81 | J9: =VLOOKUP(F9,'KOTRA 기준단가'!$I$1:$J$7,2,0) -> 1190 | K9: 341530 | L9: 209440
A10: 9 | B10: 아시아 | C10: 중국 | D10: 가 | E10: 홍콩 | F10: USD | G10: 30 | H10: 176 | I10: 81 | J10: =VLOOKUP(F10,'KOTRA 기준단가'!$I$1:$J$7,2,0) -> 1190 | K10: 341530 | L10: 209440
A11: 10 | B11: 유럽주 | C11: 스위스 | D11: 가 | E11: 제네바 | F11: USD | G11: 30 | H11: 176 | I11: 81 | J11: =VLOOKUP(F11,'KOTRA 기준단가'!$I$1:$J$7,2,0) -> 1190 | K11: 341530 | L11: 209440
A12: 11 | B12: 아시아 | C12: 싱가포르 | D12: 가 | E12: 싱가포르 | F12: USD | G12: 30 | H12: 176 | I12: 81 | J12: =VLOOKUP(F12,'KOTRA 기준단가'!$I$1:$J$7,2,0) -> 1190 | K12: =(G12+H12+I12)*J12 -> 341530 | L12: =J12*H12 -> 209440
A13: 12 | B13: 아시아 | C13: 대만 | D13: 나 | E13: 타이완 | F13: USD | G13: 30 | H13: 137 | I13: 59 | J13: =VLOOKUP(F13,'KOTRA 기준단가'!$I$1:$J$7,2,0) -> 1190 | K13: =(G13+H13+I13)*J13 -> 268940 | L13: =J13*H13 -> 163030
A14: 13 | B14: 아시아 | C14: 중국 | D14: 나 | E14: 베이징 | F14: USD | G14: 30 | H14: 137 | I14: 59 | J14: =VLOOKUP(F14,'KOTRA 기준단가'!$I$1:$J$7,2,0) -> 1190 | K14: 268940 | L14: 163030
A15: 14 | B15: 아시아 | C15: 인도 | D15: 나 | E15: 뉴델리 | F15: USD | G15: 30 | H15: 137 | I15: 59 | J15: =VLOOKUP(F15,'KOTRA 기준단가'!$I$1:$J$7,2,0) -> 1190 | K15: 268940 | L15: 163030
A16: 15 | B16: 아시아 | C16: 인도 | D16: 나 | E16: 뭄바이 | F16: USD | G16: 30 | H16: 137 | I16: 59 | J16: =VLOOKUP(F16,'KOTRA 기준단가'!$I$1:$J$7,2,0) -> 1190 | K16: 268940 | L16: 163030
A17: 16 | B17: 아시아 | C17: 인도 | D17: 나 | E17: 방갈로르 | F17: USD | G17: 30 | H17: 137 | I17: 59 | J17: =VLOOKUP(F17,'KOTRA 기준단가'!$I$1:$J$7,2,0) -> 1190 | K17: 268940 | L17: 163030
A18: 17 | B18: 아시아 | C18: 인도 | D18: 나 | E18: 벵갈루루 | F18: USD | G18: 30 | H18: 137 | I18: 59 | J18: =VLOOKUP(F18,'KOTRA 기준단가'!$I$1:$J$7,2,0) -> 1190 | K18: 268940 | L18: 163030
A19: 18 | B19: 아시아 | C19: 일본 | D19: 나 | E19: 오사카 | F19: USD | G19: 30 | H19: 137 | I19: 59 | J19: =VLOOKUP(F19,'KOTRA 기준단가'!$I$1:$J$7,2,0) -> 1190 | K19: 268940 | L19: 163030
A20: 19 | B20: 아시아 | C20: 일본 | D20: 나 | E20: 치바 | F20: USD | G20: 30 | H20: 137 | I20: 59 | J20: =VLOOKUP(F20,'KOTRA 기준단가'!$I$1:$J$7,2,0) -> 1190 | K20: 268940 | L20: 163030
A21: 20 | B21: 아시아 | C21: 일본 | D21: 나 | E21: 후쿠오카 | F21: USD | G21: 30 | H21: 137 | I21: 59 | J21: =VLOOKUP(F21,'KOTRA 기준단가'!$I$1:$J$7,2,0) -> 1190 | K21: 268940 | L21: 163030
A22: 21 | B22: 아시아 | C22: 일본 | D22: 나 | E22: 나고야 | F22: USD | G22: 30 | H22: 137 | I22: 59 | J22: =VLOOKUP(F22,'KOTRA 기준단가'!$I$1:$J$7,2,0) -> 1190 | K22: 268940 | L22: 163030
A23: 22 | B23: 아시아 | C23: 카자흐스탄 | D23: 나 | E23: 알마티 | F23: USD | G23: 30 | H23: 137 | I23: 59 | J23: =VLOOKUP(F23,'KOTRA 기준단가'!$I$1:$J$7,2,0) -> 1190 | K23: 268940 | L23: 163030
A24: 23 | B24: 아메리카 | C24: 멕시코 | D24: 나 | E24: 멕시코시티 | F24: USD | G24: 30 | H24: 137 | I24: 59 | J24: =VLOOKUP(F24,'KOTRA 기준단가'!$I$1:$J$7,2,0) -> 1190 | K24: 268940 | L24: 163030
A25: 24 | B25: 아메리카 | C25: 미국 | D25: 나 | E25: 디트로이트 | F25: USD | G25: 30 | H25: 137 | I25: 59 | J25: =VLOOKUP(F25,'KOTRA 기준단가'!$I$1:$J$7,2,0) -> 1190 | K25: 268940 | L25: 163030
A26: 25 | B26: 아메리카 | C26: 미국 | D26: 나 | E26: 라스베가스 | F26: USD | G26: 30 | H26: 137 | I26: 59 | J26: =VLOOKUP(F26,'KOTRA 기준단가'!$I$1:$J$7,2,0) -> 1190 | K26: 268940 | L26: 163030
A27: 26 | B27: 아메리카 | C27: 미국 | D27: 나 | E27: 마이애미 | F27: USD | G27: 30 | H27: 137 | I27: 59 | J27: =VLOOKUP(F27,'KOTRA 기준단가'!$I$1:$J$7,2,0) -> 1190 | K27: 268940 | L27: 163030
A28: 27 | B28: 아메리카 | C28: 미국 | D28: 나 | E28: 애너하임 | F28: USD | G28: 30 | H28: 137 | I28: 59 | J28: =VLOOKUP(F28,'KOTRA 기준단가'!$I$1:$J$7,2,0) -> 1190 | K28: 268940 | L28: 163030
A29: 28 | B29: 아메리카 | C29: 미국 | D29: 나 | E29: 솔트레이크시티 | F29: USD | G29: 30 | H29: 137 | I29: 59 | J29: =VLOOKUP(F29,'KOTRA 기준단가'!$I$1:$J$7,2,0) -> 1190 | K29: 268940 | L29: 163030
A30: 29 | B30: 아메리카 | C30: 미국 | D30: 나 | E30: 미시건 | F30: USD | G30: 30 | H30: 137 | I30: 59 | J30: =VLOOKUP(F30,'KOTRA 기준단가'!$I$1:$J$7,2,0) -> 1190 | K30: 268940 | L30: 163030
A31: 30 | B31: 아메리카 | C31: 미국 | D31: 나 | E31: 시카고 | F31: USD | G31: 30 | H31: 137 | I31: 59 | J31: =VLOOKUP(F31,'KOTRA 기준단가'!$I$1:$J$7,2,0) -> 1190 | K31: 268940 | L31: 163030
A32: 31 | B32: 아메리카 | C32: 미국 | D32: 나 | E32: 하노버 | F32: USD | G32: 30 | H32: 137 | I32: 59 | J32: =VLOOKUP(F32,'KOTRA 기준단가'!$I$1:$J$7,2,0) -> 1190 | K32: 268940 | L32: 163030
A33: 32 | B33: 아메리카 | C33: 미국 | D33: 나 | E33: 휴스턴 | F33: USD | G33: 30 | H33: 137 | I33: 59 | J33: =VLOOKUP(F33,'KOTRA 기준단가'!$I$1:$J$7,2,0) -> 1190 | K33: 268940 | L33: 163030
A34: 33 | B34: 아메리카 | C34: 미국 | D34: 나 | E34: 달라스 | F34: USD | G34: 30 | H34: 137 | I34: 59 | J34: =VLOOKUP(F34,'KOTRA 기준단가'!$I$1:$J$7,2,0) -> 1190 | K34: 268940 | L34: 163030
A35: 34 | B35: 아메리카 | C35: 미국 | D35: 나 | E35: 실리콘밸리 | F35: USD | G35: 30 | H35: 137 | I35: 59 | J35: =VLOOKUP(F35,'KOTRA 기준단가'!$I$1:$J$7,2,0) -> 1190 | K35: 268940 | L35: 163030
A36: 35 | B36: 아메리카 | C36: 미국 | D36: 나 | E36: 오클랜드 | F36: USD | G36: 30 | H36: 137 | I36: 59 | J36: =VLOOKUP(F36,'KOTRA 기준단가'!$I$1:$J$7,2,0) -> 1190 | K36: 268940 | L36: 163030
A37: 36 | B37: 아메리카 | C37: 브라질 | D37: 나 | E37: 상파울루 | F37: USD | G37: 30 | H37: 137 | I37: 59 | J37: =VLOOKUP(F37,'KOTRA 기준단가'!$I$1:$J$7,2,0) -> 1190 | K37: 268940 | L37: 163030
A38: 37 | B38: 아메리카 | C38: 브라질 | D38: 나 | E38: 리우데자네이루 | F38: USD | G38: 30 | H38: 137 | I38: 59 | J38: =VLOOKUP(F38,'KOTRA 기준단가'!$I$1:$J$7,2,0) -> 1190 | K38: 268940 | L38: 163030
A39: 38 | B39: 아메리카 | C39: 아르헨티나 | D39: 나 | E39: 부에노스아이레스 | F39: USD | G39: 30 | H39: 137 | I39: 59 | J39: =VLOOKUP(F39,'KOTRA 기준단가'!$I$1:$J$7,2,0) -> 1190 | K39: 268940 | L39: 163030
A40: 39 | B40: 아메리카 | C40: 캐나다 | D40: 나 | E40: 밴쿠버/토론토 | F40: USD | G40: 30 | H40: 137 | I40: 59 | J40: =VLOOKUP(F40,'KOTRA 기준단가'!$I$1:$J$7,2,0) -> 1190 | K40: 268940 | L40: 163030
A41: 40 | B41: 아메리카 | C41: 캐나다 | D41: 나 | E41: 밴쿠버 | F41: USD | G41: 30 | H41: 137 | I41: 59 | J41: =VLOOKUP(F41,'KOTRA 기준단가'!$I$1:$J$7,2,0) -> 1190 | K41: 268940 | L41: 163030
A42: 41 | B42: 아메리카 | C42: 캐나다 | D42: 나 | E42: 토론토 | F42: USD | G42: 30 | H42: 137 | I42: 59 | J42: =VLOOKUP(F42,'KOTRA 기준단가'!$I$1:$J$7,2,0) -> 1190 | K42: 268940 | L42: 163030
A43: 42 | B43: 유럽주 | C43: 그리스 | D43: 나 | E43: 아테네 | F43: USD | G43: 30 | H43: 137 | I43: 59 | J43: =VLOOKUP(F43,'KOTRA 기준단가'!$I$1:$J$7,2,0) -> 1190 | K43: 268940 | L43: 163030
A44: 43 | B44: 유럽주 | C44: 네덜란드 | D44: 나 | E44: 암스테르담 | F44: USD | G44: 30 | H44: 137 | I44: 59 | J44: =VLOOKUP(F44,'KOTRA 기준단가'!$I$1:$J$7,2,0) -> 1190 | K44: 268940 | L44: 163030
A45: 44 | B45: 유럽주 | C45: 댄마크 | D45: 나 | E45: 코펜하겐 | F45: USD | G45: 30 | H45: 137 | I45: 59 | J45: =VLOOKUP(F45,'KOTRA 기준단가'!$I$1:$J$7,2,0) -> 1190 | K45: 268940 | L45: 163030
A46: 45 | B46: 유럽주 | C46: 독일 | D46: 나 | E46: 뒤셀도르프 | F46: USD | G46: 30 | H46: 137 | I46: 59 | J46: =VLOOKUP(F46,'KOTRA 기준단가'!$I$1:$J$7,2,0) -> 1190 | K46: 268940 | L46: 163030
A47: 46 | B47: 유럽주 | C47: 독일 | D47: 나 | E47: 뮌헨 | F47: USD | G47: 30 | H47: 137 | I47: 59 | J47: =VLOOKUP(F47,'KOTRA 기준단가'!$I$1:$J$7,2,0) -> 1190 | K47: 268940 | L47: 163030
A48: 47 | B48: 유럽주 | C48: 독일 | D48: 나 | E48: 베를린 | F48: USD | G48: 30 | H48: 137 | I48: 59 | J48: =VLOOKUP(F48,'KOTRA 기준단가'!$I$1:$J$7,2,0) -> 1190 | K48: 268940 | L48: 163030
A49: 48 | B49: 유럽주 | C49: 독일 | D49: 나 | E49: 프리드리히샤펀 | F49: USD | G49: 30 | H49: 137 | I49: 59 | J49: =VLOOKUP(F49,'KOTRA 기준단가'!$I$1:$J$7,2,0) -> 1190 | K49: 268940 | L49: 163030
A50: 49 | B50: 유럽주 | C50: 독일 | D50: 나 | E50: 슈투트가르트 | F50: USD | G50: 30 | H50: 137 | I50: 59 | J50: =VLOOKUP(F50,'KOTRA 기준단가'!$I$1:$J$7,2,0) -> 1190 | K50: 268940 | L50: 163030
A51: 50 | B51: 유럽주 | C51: 독일 | D51: 나 | E51: 쾰른 | F51: USD | G51: 30 | H51: 137 | I51: 59 | J51: =VLOOKUP(F51,'KOTRA 기준단가'!$I$1:$J$7,2,0) -> 1190 | K51: 268940 | L51: 163030
A52: 51 | B52: 유럽주 | C52: 독일 | D52: 나 | E52: 프랑크푸르트 | F52: USD | G52: 30 | H52: 137 | I52: 59 | J52: =VLOOKUP(F52,'KOTRA 기준단가'!$I$1:$J$7,2,0) -> 1190 | K52: 268940 | L52: 163030
A53: 52 | B53: 유럽주 | C53: 독일 | D53: 나 | E53: 뉴렌버그 | F53: USD | G53: 30 | H53: 137 | I53: 59 | J53: =VLOOKUP(F53,'KOTRA 기준단가'!$I$1:$J$7,2,0) -> 1190 | K53: 268940 | L53: 163030
A54: 53 | B54: 유럽주 | C54: 독일 | D54: 나 | E54: 함부르크 | F54: USD | G54: 30 | H54: 137 | I54: 59 | J54: =VLOOKUP(F54,'KOTRA 기준단가'!$I$1:$J$7,2,0) -> 1190 | K54: 268940 | L54: 163030
A55: 54 | B55: 유럽주 | C55: 러시아 | D55: 나 | E55: 블라디보스톡 | F55: USD | G55: 30 | H55: 137 | I55: 59 | J55: =VLOOKUP(F55,'KOTRA 기준단가'!$I$1:$J$7,2,0) -> 1190 | K55: 268940 | L55: 163030
A56: 55 | B56: 유럽주 | C56: 러시아 | D56: 나 | E56: 상트페테르부르크 | F56: USD | G56: 30 | H56: 137 | I56: 59 | J56: =VLOOKUP(F56,'KOTRA 기준단가'!$I$1:$J$7,2,0) -> 1190 | K56: 268940 | L56: 163030
A57: 56 | B57: 유럽주 | C57: 러시아 | D57: 나 | E57: 노보시비르스크 | F57: USD | G57: 30 | H57: 137 | I57: 59 | J57: =VLOOKUP(F57,'KOTRA 기준단가'!$I$1:$J$7,2,0) -> 1190 | K57: 268940 | L57: 163030
A58: 57 | B58: 유럽주 | C58: 벨기에 | D58: 나 | E58: 브뤼셀 | F58: USD | G58: 30 | H58: 137 | I58: 59 | J58: =VLOOKUP(F58,'KOTRA 기준단가'!$I$1:$J$7,2,0) -> 1190 | K58: 268940 | L58: 163030
A59: 58 | B59: 유럽주 | C59: 스웨덴 | D59: 나 | E59: 스톡홀름 | F59: USD | G59: 30 | H59: 137 | I59: 59 | J59: =VLOOKUP(F59,'KOTRA 기준단가'!$I$1:$J$7,2,0) -> 1190 | K59: 268940 | L59: 163030
A60: 59 | B60: 유럽주 | C60: 스위스 | D60: 나 | E60: 취리히 | F60: USD | G60: 30 | H60: 137 | I60: 59 | J60: =VLOOKUP(F60,'KOTRA 기준단가'!$I$1:$J$7,2,0) -> 1190 | K60: 268940 | L60: 163030
A61: 60 | B61: 유럽주 | C61: 스페인 | D61: 나 | E61: 마드리드 | F61: USD | G61: 30 | H61: 137 | I61: 59 | J61: =VLOOKUP(F61,'KOTRA 기준단가'!$I$1:$J$7,2,0) -> 1190 | K61: 268940 | L61: 163030
A62: 61 | B62: 유럽주 | C62: 영국 | D62: 나 | E62: 에버딘 | F62: USD | G62: 30 | H62: 137 | I62: 59 | J62: =VLOOKUP(F62,'KOTRA 기준단가'!$I$1:$J$7,2,0) -> 1190 | K62: 268940 | L62: 163030
A63: 62 | B63: 유럽주 | C63: 오스트리아 | D63: 나 | E63: 빈 | F63: USD | G63: 30 | H63: 137 | I63: 59 | J63: =VLOOKUP(F63,'KOTRA 기준단가'!$I$1:$J$7,2,0) -> 1190 | K63: 268940 | L63: 163030
A64: 63 | B64: 유럽주 | C64: 우크라이나 | D64: 나 | E64: 키예프 | F64: USD | G64: 30 | H64: 137 | I64: 59 | J64: =VLOOKUP(F64,'KOTRA 기준단가'!$I$1:$J$7,2,0) -> 1190 | K64: 268940 | L64: 163030
A65: 64 | B65: 유럽주 | C65: 이탈리아 | D65: 나 | E65: 밀라노 | F65: USD | G65: 30 | H65: 137 | I65: 59 | J65: =VLOOKUP(F65,'KOTRA 기준단가'!$I$1:$J$7,2,0) -> 1190 | K65: 268940 | L65: 163030
A66: 65 | B66: 유럽주 | C66: 이탈리아 | D66: 나 | E66: 베로나 | F66: USD | G66: =VLOOKUP($D66,$O$2:$R$5,2,0) -> 30 | H66: =VLOOKUP($D66,$O$2:$R$5,3,0) -> 137 | I66: =VLOOKUP($D66,$O$2:$R$5,4,0) -> 59 | J66: =VLOOKUP(F66,'KOTRA 기준단가'!$I$1:$J$7,2,0) -> 1190 | K66: 268940 | L66: 163030
A67: 66 | B67: 유럽주 | C67: 핀란드 | D67: 나 | E67: 헬싱키 | F67: USD | G67: 30 | H67: 137 | I67: 59 | J67: =VLOOKUP(F67,'KOTRA 기준단가'!$I$1:$J$7,2,0) -> 1190 | K67: 268940 | L67: 163030
A68: 67 | B68: 유럽주 | C68: 헝가리 | D68: 나 | E68: 부다페스트 | F68: USD | G68: 30 | H68: 137 | I68: 59 | J68: =VLOOKUP(F68,'KOTRA 기준단가'!$I$1:$J$7,2,0) -> 1190 | K68: 268940 | L68: 163030
A69: 68 | B69: 중동 | C69: UAE | D69: 나 | E69: 두바이 | F69: USD | G69: 30 | H69: 137 | I69: 59 | J69: =VLOOKUP(F69,'KOTRA 기준단가'!$I$1:$J$7,2,0) -> 1190 | K69: 268940 | L69: 163030
A70: 69 | B70: 중동 | C70: UAE | D70: 나 | E70: 아부다비 | F70: USD | G70: 30 | H70: 137 | I70: 59 | J70: =VLOOKUP(F70,'KOTRA 기준단가'!$I$1:$J$7,2,0) -> 1190 | K70: 268940 | L70: 163030
A71: 70 | B71: 중동 | C71: 리비아 | D71: 나 | E71: 트리폴리 | F71: USD | G71: 30 | H71: 137 | I71: 59 | J71: =VLOOKUP(F71,'KOTRA 기준단가'!$I$1:$J$7,2,0) -> 1190 | K71: 268940 | L71: 163030
A72: 71 | B72: 중동 | C72: 사우디아라비아 | D72: 나 | E72: 리야드 | F72: USD | G72: 30 | H72: 137 | I72: 59 | J72: =VLOOKUP(F72,'KOTRA 기준단가'!$I$1:$J$7,2,0) -> 1190 | K72: 268940 | L72: 163030
A73: 72 | B73: 중동 | C73: 오만 | D73: 나 | E73: 무스카트 | F73: USD | G73: 30 | H73: 137 | I73: 59 | J73: =VLOOKUP(F73,'KOTRA 기준단가'!$I$1:$J$7,2,0) -> 1190 | K73: 268940 | L73: 163030
A74: 73 | B74: 중동 | C74: 이집트 | D74: 나 | E74: 카이로 | F74: USD | G74: 30 | H74: 137 | I74: 59 | J74: =VLOOKUP(F74,'KOTRA 기준단가'!$I$1:$J$7,2,0) -> 1190 | K74: 268940 | L74: 163030
A75: 74 | B75: 중동 | C75: 카타르 | D75: 나 | E75: 도하 | F75: USD | G75: 30 | H75: 137 | I75: 59 | J75: =VLOOKUP(F75,'KOTRA 기준단가'!$I$1:$J$7,2,0) -> 1190 | K75: 268940 | L75: 163030
A76: 75 | B76: 아프리카 | C76: 남아프리카공화국 | D76: 나 | E76: 요하네스버그 | F76: USD | G76: 30 | H76: 137 | I76: 59 | J76: =VLOOKUP(F76,'KOTRA 기준단가'!$I$1:$J$7,2,0) -> 1190 | K76: 268940 | L76: 163030
A77: 76 | B77: 아시아 | C77: 말레이시아 | D77: 다 | E77: 쿠알라룸푸르 | F77: USD | G77: 30 | H77: 106 | I77: 44 | J77: =VLOOKUP(F77,'KOTRA 기준단가'!$I$1:$J$7,2,0) -> 1190 | K77: =(G77+H77+I77)*J77 -> 214200 | L77: =J77*H77 -> 126140
A78: 77 | B78: 아시아 | C78: 방글라데시 | D78: 다 | E78: 다카 | F78: USD | G78: 30 | H78: 106 | I78: 44 | J78: =VLOOKUP(F78,'KOTRA 기준단가'!$I$1:$J$7,2,0) -> 1190 | K78: 214200 | L78: 126140
A79: 78 | B79: 아시아 | C79: 아제르바이잔 | D79: 다 | E79: 바쿠 | F79: USD | G79: 30 | H79: 106 | I79: 44 | J79: =VLOOKUP(F79,'KOTRA 기준단가'!$I$1:$J$7,2,0) -> 1190 | K79: 214200 | L79: 126140
A80: 79 | B80: 아시아 | C80: 인도네시아 | D80: 다 | E80: 자카르타 | F80: USD | G80: 30 | H80: 106 | I80: 44 | J80: =VLOOKUP(F80,'KOTRA 기준단가'!$I$1:$J$7,2,0) -> 1190 | K80: 214200 | L80: 126140
A81: 80 | B81: 아시아 | C81: 중국 | D81: 다 | E81: 광저우 | F81: USD | G81: 30 | H81: 106 | I81: 44 | J81: =VLOOKUP(F81,'KOTRA 기준단가'!$I$1:$J$7,2,0) -> 1190 | K81: 214200 | L81: 126140
A82: 81 | B82: 아시아 | C82: 중국 | D82: 다 | E82: 다롄 | F82: USD | G82: 30 | H82: 106 | I82: 44 | J82: =VLOOKUP(F82,'KOTRA 기준단가'!$I$1:$J$7,2,0) -> 1190 | K82: 214200 | L82: 126140
A83: 82 | B83: 아시아 | C83: 중국 | D83: 다 | E83: 동관 | F83: USD | G83: 30 | H83: 106 | I83: 44 | J83: =VLOOKUP(F83,'KOTRA 기준단가'!$I$1:$J$7,2,0) -> 1190 | K83: 214200 | L83: 126140
A84: 83 | B84: 아시아 | C84: 중국 | D84: 다 | E84: 상하이 | F84: USD | G84: 30 | H84: 106 | I84: 44 | J84: =VLOOKUP(F84,'KOTRA 기준단가'!$I$1:$J$7,2,0) -> 1190 | K84: 214200 | L84: 126140
A85: 84 | B85: 아시아 | C85: 중국 | D85: 다 | E85: 선전 | F85: USD | G85: 30 | H85: 106 | I85: 44 | J85: =VLOOKUP(F85,'KOTRA 기준단가'!$I$1:$J$7,2,0) -> 1190 | K85: 214200 | L85: 126140
A86: 85 | B86: 아시아 | C86: 중국 | D86: 다 | E86: 하얼빈 | F86: USD | G86: 30 | H86: 106 | I86: 44 | J86: =VLOOKUP(F86,'KOTRA 기준단가'!$I$1:$J$7,2,0) -> 1190 | K86: 214200 | L86: 126140
A87: 86 | B87: 아시아 | C87: 중국 | D87: 다 | E87: 난징 | F87: USD | G87: 30 | H87: 106 | I87: 44 | J87: =VLOOKUP(F87,'KOTRA 기준단가'!$I$1:$J$7,2,0) -> 1190 | K87: 214200 | L87: 126140
A88: 87 | B88: 아시아 | C88: 중국 | D88: 다 | E88: 샤먼 | F88: USD | G88: 30 | H88: 106 | I88: 44 | J88: =VLOOKUP(F88,'KOTRA 기준단가'!$I$1:$J$7,2,0) -> 1190 | K88: 214200 | L88: 126140
A89: 88 | B89: 아시아 | C89: 중국 | D89: 다 | E89: 선양 | F89: USD | G89: 30 | H89: 106 | I89: 44 | J89: =VLOOKUP(F89,'KOTRA 기준단가'!$I$1:$J$7,2,0) -> 1190 | K89: 214200 | L89: 126140
A90: 89 | B90: 아시아 | C90: 중국 | D90: 다 | E90: 시안 | F90: USD | G90: 30 | H90: 106 | I90: 44 | J90: =VLOOKUP(F90,'KOTRA 기준단가'!$I$1:$J$7,2,0) -> 1190 | K90: 214200 | L90: 126140
A91: 90 | B91: 아시아 | C91: 중국 | D91: 다 | E91: 정저우 | F91: USD | G91: 30 | H91: 106 | I91: 44 | J91: =VLOOKUP(F91,'KOTRA 기준단가'!$I$1:$J$7,2,0) -> 1190 | K91: 214200 | L91: 126140
A92: 91 | B92: 아시아 | C92: 중국 | D92: 다 | E92: 청두 | F92: USD | G92: 30 | H92: 106 | I92: 44 | J92: =VLOOKUP(F92,'KOTRA 기준단가'!$I$1:$J$7,2,0) -> 1190 | K92: 214200 | L92: 126140
A93: 92 | B93: 아시아 | C93: 중국 | D93: 다 | E93: 충칭 | F93: USD | G93: 30 | H93: 106 | I93: 44 | J93: =VLOOKUP(F93,'KOTRA 기준단가'!$I$1:$J$7,2,0) -> 1190 | K93: 214200 | L93: 126140
A94: 93 | B94: 아시아 | C94: 중국 | D94: 다 | E94: 칭다오 | F94: USD | G94: 30 | H94: 106 | I94: 44 | J94: =VLOOKUP(F94,'KOTRA 기준단가'!$I$1:$J$7,2,0) -> 1190 | K94: 214200 | L94: 126140
A95: 94 | B95: 아시아 | C95: 중국 | D95: 다 | E95: 톈진 | F95: USD | G95: 30 | H95: 106 | I95: 44 | J95: =VLOOKUP(F95,'KOTRA 기준단가'!$I$1:$J$7,2,0) -> 1190 | K95: 214200 | L95: 126140
A96: 95 | B96: 아시아 | C96: 중국 | D96: 다 | E96: 항저우 | F96: USD | G96: 30 | H96: 106 | I96: 44 | J96: =VLOOKUP(F96,'KOTRA 기준단가'!$I$1:$J$7,2,0) -> 1190 | K96: 214200 | L96: 126140
A97: 96 | B97: 아시아 | C97: 중국 | D97: 다 | E97: 곤명 | F97: USD | G97: 30 | H97: 106 | I97: 44 | J97: =VLOOKUP(F97,'KOTRA 기준단가'!$I$1:$J$7,2,0) -> 1190 | K97: 214200 | L97: 126140
A98: 97 | B98: 아시아 | C98: 중국 | D98: 다 | E98: 우한 | F98: USD | G98: 30 | H98: 106 | I98: 44 | J98: =VLOOKUP(F98,'KOTRA 기준단가'!$I$1:$J$7,2,0) -> 1190 | K98: 214200 | L98: 126140
A99: 98 | B99: 아시아 | C99: 중국 | D99: 다 | E99: 창사 | F99: USD | G99: 30 | H99: 106 | I99: 44 | J99: =VLOOKUP(F99,'KOTRA 기준단가'!$I$1:$J$7,2,0) -> 1190 | K99: 214200 | L99: 126140
A100: 99 | B100: 아시아 | C100: 태국 | D100: 다 | E100: 방콕 | F100: USD | G100: 30 | H100: 106 | I100: 44 | J100: =VLOOKUP(F100,'KOTRA 기준단가'!$I$1:$J$7,2,0) -> 1190 | K100: 214200 | L100: 126140
A101: 100 | B101: 아시아 | C101: 우즈베키스탄 | D101: 다 | E101: 타슈켄트 | F101: USD | G101: 30 | H101: 106 | I101: 44 | J101: =VLOOKUP(F101,'KOTRA 기준단가'!$I$1:$J$7,2,0) -> 1190 | K101: 214200 | L101: 126140
A102: 101 | B102: 아시아 | C102: 터키 | D102: 다 | E102: 이스탄불 | F102: USD | G102: 30 | H102: 106 | I102: 44 | J102: =VLOOKUP(F102,'KOTRA 기준단가'!$I$1:$J$7,2,0) -> 1190 | K102: 214200 | L102: 126140
A103: 102 | B103: 오세아니아 | C103: 오스트레일리아 | D103: 다 | E103: 멜버른 | F103: USD | G103: 30 | H103: 106 | I103: 44 | J103: =VLOOKUP(F103,'KOTRA 기준단가'!$I$1:$J$7,2,0) -> 1190 | K103: 214200 | L103: 126140
A104: 103 | B104: 오세아니아 | C104: 오스트레일리아 | D104: 다 | E104: 시드니 | F104: USD | G104: 30 | H104: 106 | I104: 44 | J104: =VLOOKUP(F104,'KOTRA 기준단가'!$I$1:$J$7,2,0) -> 1190 | K104: 214200 | L104: 126140
A105: 104 | B105: 아메리카 | C105: 도미니카공화국 | D105: 다 | E105: 산토도밍고 | F105: USD | G105: 30 | H105: 106 | I105: 44 | J105: =VLOOKUP(F105,'KOTRA 기준단가'!$I$1:$J$7,2,0) -> 1190 | K105: 214200 | L105: 126140
A106: 105 | B106: 아메리카 | C106: 칠레 | D106: 다 | E106: 산티아고 | F106: USD | G106: 30 | H106: 106 | I106: 44 | J106: =VLOOKUP(F106,'KOTRA 기준단가'!$I$1:$J$7,2,0) -> 1190 | K106: 214200 | L106: 126140
A107: 106 | B107: 아메리카 | C107: 파나마 | D107: 다 | E107: 파나마 | F107: USD | G107: 30 | H107: 106 | I107: 44 | J107: =VLOOKUP(F107,'KOTRA 기준단가'!$I$1:$J$7,2,0) -> 1190 | K107: 214200 | L107: 126140
A108: 107 | B108: 유럽주 | C108: 루마니아 | D108: 다 | E108: 부쿠레슈티 | F108: USD | G108: 30 | H108: 106 | I108: 44 | J108: =VLOOKUP(F108,'KOTRA 기준단가'!$I$1:$J$7,2,0) -> 1190 | K108: 214200 | L108: 126140
A109: 108 | B109: 유럽주 | C109: 불가리아 | D109: 다 | E109: 소피아 | F109: USD | G109: 30 | H109: 106 | I109: 44 | J109: =VLOOKUP(F109,'KOTRA 기준단가'!$I$1:$J$7,2,0) -> 1190 | K109: 214200 | L109: 126140
A110: 109 | B110: 유럽주 | C110: 세르비아 | D110: 다 | E110: 베오그라드 | F110: USD | G110: 30 | H110: 106 | I110: 44 | J110: =VLOOKUP(F110,'KOTRA 기준단가'!$I$1:$J$7,2,0) -> 1190 | K110: 214200 | L110: 126140
A111: 110 | B111: 유럽주 | C111: 슬로바키아 | D111: 다 | E111: 브라티슬라바 | F111: USD | G111: 30 | H111: 106 | I111: 44 | J111: =VLOOKUP(F111,'KOTRA 기준단가'!$I$1:$J$7,2,0) -> 1190 | K111: 214200 | L111: 126140
A112: 111 | B112: 유럽주 | C112: 체코 | D112: 다 | E112: 프라하 | F112: USD | G112: 30 | H112: 106 | I112: 44 | J112: =VLOOKUP(F112,'KOTRA 기준단가'!$I$1:$J$7,2,0) -> 1190 | K112: 214200 | L112: 126140
A113: 112 | B113: 유럽주 | C113: 폴란드 | D113: 다 | E113: 바르샤바 | F113: USD | G113: 30 | H113: 106 | I113: 44 | J113: =VLOOKUP(F113,'KOTRA 기준단가'!$I$1:$J$7,2,0) -> 1190 | K113: 214200 | L113: 126140
A114: 113 | B114: 아프리카 | C114: 나이지리아 | D114: 다 | E114: 라고스 | F114: USD | G114: 30 | H114: 106 | I114: 44 | J114: =VLOOKUP(F114,'KOTRA 기준단가'!$I$1:$J$7,2,0) -> 1190 | K114: 214200 | L114: 126140
A115: 114 | B115: 아프리카 | C115: 모로코 | D115: 다 | E115: 카사블랑카 | F115: USD | G115: 30 | H115: 106 | I115: 44 | J115: =VLOOKUP(F115,'KOTRA 기준단가'!$I$1:$J$7,2,0) -> 1190 | K115: 214200 | L115: 126140
A116: 115 | B116: 아프리카 | C116: 모잠비크 | D116: 다 | E116: 마푸투 | F116: USD | G116: 30 | H116: 106 | I116: 44 | J116: =VLOOKUP(F116,'KOTRA 기준단가'!$I$1:$J$7,2,0) -> 1190 | K116: 214200 | L116: 126140
A117: 116 | B117: 중동 | C117: 이라크 | D117: 다 | E117: 바그다드 | F117: USD | G117: 30 | H117: 106 | I117: 44 | J117: =VLOOKUP(F117,'KOTRA 기준단가'!$I$1:$J$7,2,0) -> 1190 | K117: 214200 | L117: 126140
A118: 117 | B118: 중동 | C118: 요르단 | D118: 다 | E118: 암만 | F118: USD | G118: 30 | H118: 106 | I118: 44 | J118: =VLOOKUP(F118,'KOTRA 기준단가'!$I$1:$J$7,2,0) -> 1190 | K118: 214200 | L118: 126140
A119: 118 | B119: 아프리카 | C119: 카메룬 | D119: 다 | E119: 두알라 | F119: USD | G119: 30 | H119: 106 | I119: 44 | J119: =VLOOKUP(F119,'KOTRA 기준단가'!$I$1:$J$7,2,0) -> 1190 | K119: 214200 | L119: 126140
A120: 119 | B120: 아프리카 | C120: 케냐 | D120: 다 | E120: 나이로비 | F120: USD | G120: 30 | H120: 106 | I120: 44 | J120: =VLOOKUP(F120,'KOTRA 기준단가'!$I$1:$J$7,2,0) -> 1190 | K120: 214200 | L120: 126140
A121: 120 | B121: 아프리카 | C121: 탄자니아 | D121: 다 | E121: 다레살람 | F121: USD | G121: 30 | H121: 106 | I121: 44 | J121: =VLOOKUP(F121,'KOTRA 기준단가'!$I$1:$J$7,2,0) -> 1190 | K121: 214200 | L121: 126140
A122: 121 | B122: 아시아 | C122: 미얀마 | D122: 라 | E122: 양곤 | F122: USD | G122: 30 | H122: 81 | I122: 37 | J122: =VLOOKUP(F122,'KOTRA 기준단가'!$I$1:$J$7,2,0) -> 1190 | K122: 176120 | L122: 96390
A123: 122 | B123: 아시아 | C123: 베트남 | D123: 라 | E123: 하노이 | F123: USD | G123: 30 | H123: 81 | I123: 37 | J123: =VLOOKUP(F123,'KOTRA 기준단가'!$I$1:$J$7,2,0) -> 1190 | K123: 176120 | L123: 96390
A124: 123 | B124: 아시아 | C124: 베트남 | D124: 라 | E124: 호치민 | F124: USD | G124: 30 | H124: 81 | I124: 37 | J124: =VLOOKUP(F124,'KOTRA 기준단가'!$I$1:$J$7,2,0) -> 1190 | K124: 176120 | L124: 96390
A125: 124 | B125: 아시아 | C125: 캄보디아 | D125: 라 | E125: 프놈펜 | F125: USD | G125: 30 | H125: 81 | I125: 37 | J125: =VLOOKUP(F125,'KOTRA 기준단가'!$I$1:$J$7,2,0) -> 1190 | K125: 176120 | L125: 96390
A126: 125 | B126: 아시아 | C126: 필리핀 | D126: 라 | E126: 마닐라 | F126: USD | G126: 30 | H126: 81 | I126: 37 | J126: =VLOOKUP(F126,'KOTRA 기준단가'!$I$1:$J$7,2,0) -> 1190 | K126: 176120 | L126: 96390
A127: 126 | B127: 아메리카 | C127: 과테말라 | D127: 라 | E127: 과테말라 | F127: USD | G127: 30 | H127: 81 | I127: 37 | J127: =VLOOKUP(F127,'KOTRA 기준단가'!$I$1:$J$7,2,0) -> 1190 | K127: 176120 | L127: 96390
A128: 127 | B128: 아메리카 | C128: 페루 | D128: 라 | E128: 리마 | F128: USD | G128: 30 | H128: 81 | I128: 37 | J128: =VLOOKUP(F128,'KOTRA 기준단가'!$I$1:$J$7,2,0) -> 1190 | K128: 176120 | L128: 96390
A129: 128 | B129: 유럽주 | C129: 크로아티아 | D129: 라 | E129: 자그레브 | F129: USD | G129: 30 | H129: 81 | I129: 37 | J129: =VLOOKUP(F129,'KOTRA 기준단가'!$I$1:$J$7,2,0) -> 1190 | K129: 176120 | L129: 96390
A130: 129 | B130: 중동 | C130: 이란 | D130: 라 | E130: 테헤란 | F130: USD | G130: =VLOOKUP($D130,$O$2:$R$5,2,0) -> 30 | H130: =VLOOKUP($D130,$O$2:$R$5,3,0) -> 81 | I130: =VLOOKUP($D130,$O$2:$R$5,4,0) -> 37 | J130: =VLOOKUP(F130,'KOTRA 기준단가'!$I$1:$J$7,2,0) -> 1190 | K130: 176120 | L130: 96390
